bitfinex/quotes_SOLUSD_20250724
["timestamp","ask_amount","ask_price","bid_price","bid_amount"]
[1753383470174,43.49367111,189.66,189.64,0.06]
[1753383471570,0.71,189.65,189.64,0.06]
[1753383472452,0.74,189.65,189.64,0.06]
[1753383473062,6.00367111,189.65,189.64,0.06]
[1753383473776,11.27654218,189.65,189.64,0.06]
[1753383474959,6.01287107,189.65,189.64,0.06]
[1753383475164,6.00367111,189.65,189.64,0.06]
[1753383475668,11.27654218,189.65,189.64,0.06]
[1753383475870,28.06122615,189.65,189.64,0.06]
[1753383476074,28.34554929,189.65,189.64,0.06]
[1753383478358,33.6092204,189.65,189.64,0.06]
[1753383478781,33.6092204,189.65,189.64,1e-08]
[1753383480182,33.6092204,189.65,189.61,0.06]
[1753383480358,49.96937822,189.61,189.6,0.06]
[1753383480564,0.28432314,189.6,189.57,0.06]
[1753383480770,26.0,189.53,189.52,0.06]
[1753383480971,26.0,189.53,189.49,0.06]
[1753383480972,42.78468397,189.5,189.49,0.06]
[1753383481195,85.56835508,189.5,189.48,0.06]
[1753383481387,11.21099445,189.49,189.48,0.06]
[1753383481587,26.0,189.46,189.41,0.2]
[1753383481769,16.78468397,189.45,189.41,0.2]
[1753383481970,48.04835508,189.43,189.41,0.2]
[1753383482181,23.42828397,189.42,189.41,1e-08]
[1753383482384,67.16627822,189.42,189.41,1e-08]
[1753383482591,29.64627822,189.42,189.41,1e-08]
[1753383482775,67.16627822,189.42,189.41,1e-08]
[1753383483486,72.44555179,189.42,189.41,1e-08]
[1753383485272,72.44555179,189.42,189.37,0.2]
[1753383485273,16.78468397,189.38,189.37,0.2]
[1753383485480,68.18436664,189.38,189.37,0.2]
[1753383485693,68.85436664,189.38,189.37,0.2]
[1753383486198,69.13868978,189.38,189.37,0.2]
[1753383487081,17.06900711,189.37,189.36,0.06]
[1753383487274,26.33830115,189.37,189.36,0.06]
[1753383487475,31.61896862,189.37,189.36,0.06]
[1753383487674,31.33464548,189.37,189.36,0.06]
[1753383487885,68.87464548,189.37,189.36,0.06]
[1753383488175,69.15896862,189.37,189.36,0.06]
[1753383488991,60.55967458,189.37,189.36,0.06]
[1753383489186,68.89464548,189.37,189.36,0.06]
[1753383489396,71.64986013,189.37,189.36,0.06]
[1753383490603,70.99986013,189.37,189.36,0.06]
[1753383490808,71.66986013,189.37,189.36,0.06]
[1753383491847,71.95418327,189.37,189.36,0.06]
[1753383492571,71.95418327,189.37,189.28,0.06]
[1753383492572,16.78468397,189.33,189.28,0.06]
[1753383492776,63.22830115,189.33,189.28,0.06]
[1753383492994,63.89830115,189.33,189.28,0.06]
[1753383494703,69.18008427,189.33,189.28,0.06]
[1753383499296,73.31345738,189.33,189.28,0.06]
[1753383502719,64.71416334,189.33,189.28,0.06]
[1753383502901,73.31345738,189.33,189.28,0.06]
[1753383504421,81.91275142,189.33,189.32,1e-08]
[1753383504602,16.78468397,189.29,189.28,0.06]
[1753383504810,62.96397801,189.29,189.28,0.06]
[1753383505007,63.63397801,189.29,189.28,0.06]
[1753383505509,25.38397801,189.29,189.28,0.74]
[1753383505813,4.13337311,189.33,189.28,0.74]
[1753383506014,8.59929404,189.35,189.3,6.1241]
[1753383506218,8.59929404,189.35,189.31,0.68]
[1753383506219,26.0,189.32,189.31,0.68]
[1753383506527,63.58,189.32,189.31,0.68]
[1753383506701,37.58,189.32,189.31,0.68]
[1753383511728,37.58,189.32,189.3,6.1241]
[1753383512025,37.58,189.32,189.31,0.66]
[1753383512923,37.58,189.32,189.3,6.1241]
[1753383513117,37.58,189.32,189.31,0.66]
[1753383513521,37.58,189.32,189.28,0.06]
[1753383513708,42.85747373,189.32,189.29,0.66]
[1753383514723,16.78468397,189.31,189.28,0.06]
[1753383514920,37.58,189.3,189.28,0.72]
[1753383515910,37.58,189.3,189.29,0.06]
[1753383516828,37.58,189.3,189.29,0.72]
[1753383518625,31.27747373,189.33,189.29,0.72]
[1753383518837,37.58,189.32,189.29,0.72]
[1753383519006,26.0,189.33,189.31,5.27747373]
[1753383519213,37.58,189.33,189.32,5.93747373]
[1753383520536,37.58,189.35,189.32,5.93747373]
[1753383520720,37.58,189.35,189.33,0.66]
[1753383520917,37.58,189.35,189.33,5.93747373]
[1753383521220,0.03,189.36,189.35,6.1503]
[1753383521420,0.03,189.36,189.35,11.42777373]
[1753383521722,0.03,189.36,189.35,12.37209687]
[1753383522743,0.03,189.36,189.35,17.65332211]
[1753383526245,0.03,189.36,189.35,22.93079584]
[1753383527441,0.03,189.4,189.36,0.28432314]
[1753383527645,0.03,189.4,189.39,5.56179687]
[1753383527860,0.03,189.4,189.39,6.22179687]
[1753383528854,0.03,189.4,189.39,11.50190669]
[1753383531554,0.03,189.4,189.36,31.27747373]
[1753383531555,0.03,189.4,189.37,5.27747373]
[1753383531852,0.03,189.4,189.38,0.66]
[1753383532531,37.59,189.4,189.35,5.27747373]
[1753383532734,0.69,189.39,189.34,0.66]
[1753383532928,5.96747373,189.39,189.34,0.66]
[1753383533446,37.59,189.4,189.35,0.66]
[1753383533628,42.86747373,189.4,189.34,5.27747373]
[1753383533829,42.86747373,189.4,189.36,0.66]
[1753383534052,43.55747373,189.4,189.36,0.66]
[1753383535347,0.69,189.39,189.34,5.93747373]
[1753383536965,5.27747373,189.37,189.3,7.026]
[1753383537255,37.56,189.36,189.31,5.27747373]
[1753383537465,37.56,189.36,189.31,5.93747373]
[1753383537644,43.51101369,189.36,189.31,5.93747373]
[1753383538265,38.23,189.36,189.31,10.55975433]
[1753383538468,37.56,189.36,189.32,0.66]
[1753383538763,37.56,189.36,189.32,5.93747373]
[1753383538934,37.56,189.36,189.33,0.66]
[1753383539135,37.56,189.36,189.34,0.66]
[1753383539743,37.56,189.36,189.32,0.72]
[1753383540348,5.94747373,189.35,189.32,0.06]
[1753383541256,11.22895784,189.35,189.32,0.06]
[1753383542148,5.95148411,189.35,189.32,0.06]
[1753383542357,42.84096253,189.36,189.32,0.72]
[1753383542652,48.11843626,189.36,189.32,0.72]
[1753383543058,0.67,189.35,189.32,0.06]
[1753383543254,5.95132858,189.35,189.32,0.06]
[1753383543549,42.83747373,189.36,189.32,0.06]
[1753383543853,0.03,189.38,189.35,5.27747373]
[1753383544060,0.03,189.38,189.37,5.27747373]
[1753383544452,0.03,189.38,189.37,5.93747373]
[1753383545371,0.03,189.38,189.37,11.2181412]
[1753383545970,0.03,189.38,189.37,11.50246434]
[1753383546555,0.03,189.38,189.35,5.93747373]
[1753383547158,0.03,189.38,189.37,5.56179687]
[1753383547356,0.03,189.38,189.37,10.84246434]
[1753383547556,0.03,189.38,189.37,6.22499061]
[1753383547754,0.03,189.38,189.37,11.50246434]
[1753383553968,0.03,189.38,189.37,28.28714831]
[1753383553969,1e-08,189.38,189.37,28.28714831]
[1753383554175,0.03,189.43,189.42,27.83132314]
[1753383554344,1.584,189.54,189.43,0.28432314]
[1753383554551,46.61747373,189.55,189.43,0.28432314]
[1753383554552,40.41148111,189.55,189.52,5.27747373]
[1753383554860,37.66,189.55,189.53,5.93747373]
[1753383555065,37.66,189.55,189.53,0.66]
[1753383555573,37.66,189.55,189.52,5.27747373]
[1753383555959,37.66,189.55,189.54,5.27747373]
[1753383556151,37.66,189.55,189.53,5.93747373]
[1753383557066,37.66,189.55,189.54,5.27747373]
[1753383557447,0.1,189.55,189.54,5.27747373]
[1753383557649,26.1,189.55,189.54,5.27747373]
[1753383558781,26.1,189.55,189.53,5.27747373]
[1753383559075,0.1,189.55,189.54,5.27747373]
[1753383559390,26.1,189.55,189.54,5.27747373]
[1753383565490,26.1,189.55,189.5,0.66]
[1753383565669,0.67,189.54,189.49,5.27747373]
[1753383565875,38.19,189.53,189.49,5.27747373]
[1753383566055,0.67,189.52,189.49,5.27747373]
[1753383566569,37.52,189.53,189.49,5.27747373]
[1753383566985,37.52,189.53,189.49,5.93747373]
[1753383567469,38.18,189.53,189.49,5.93747373]
[1753383567883,0.66,189.52,189.48,5.27747373]
[1753383568185,0.66,189.51,189.48,5.27747373]
[1753383568373,37.52,189.5,189.47,5.97747373]
[1753383568777,37.52,189.5,189.47,5.27747373]
[1753383569281,5.93747373,189.49,189.42,0.7]
[1753383569482,5.27747373,189.46,189.4,5.27747373]
[1753383569667,37.52,189.46,189.41,5.27747373]
[1753383569978,38.18,189.46,189.41,5.97747373]
[1753383570570,38.18,189.46,189.41,11.25697]
[1753383570769,43.45822097,189.46,189.41,5.97747373]
[1753383570971,0.66,189.45,189.41,5.4196353]
[1753383571370,0.66,189.45,189.41,5.27747373]
[1753383571897,0.66,189.45,189.4,10.5572457]
[1753383572269,0.66,189.45,189.4,11.2572457]
[1753383572686,37.52,189.46,189.41,5.97747373]
[1753383572874,38.18,189.46,189.41,5.97747373]
[1753383575592,48.07568695,189.46,189.41,0.7]
[1753383575773,0.66,189.45,189.41,0.7]
[1753383576089,0.66,189.45,189.4,5.27747373]
[1753383576391,0.66,189.45,189.4,5.97747373]
[1753383576789,0.66,189.45,189.41,0.7]
[1753383577093,0.66,189.45,189.41,5.97747373]
[1753383577992,0.66,189.45,189.41,0.7]
[1753383578289,0.66,189.45,189.4,5.27747373]
[1753383578489,0.66,189.44,189.4,5.27747373]
[1753383578682,0.66,189.44,189.39,10.55752085]
[1753383578881,0.66,189.44,189.39,11.25752085]
[1753383579089,48.73585426,189.46,189.4,5.97747373]
[1753383580700,48.73585426,189.46,189.4,11.25719038]
[1753383580896,37.52,189.46,189.42,5.27747373]
[1753383581270,37.52,189.46,189.42,5.97747373]
[1753383581476,37.52,189.46,189.42,0.7]
[1753383581477,38.18,189.46,189.42,0.7]
[1753383582177,38.21,189.46,189.42,0.7]
[1753383582980,37.55,189.46,189.41,10.90113031]
[1753383583278,38.21,189.46,189.41,11.60113031]
[1753383583488,38.21,189.46,189.42,0.7]
[1753383583875,37.55,189.46,189.42,0.7]
[1753383584573,37.55,189.46,189.42,5.9791856]
[1753383584974,5.27747373,189.43,189.41,0.06]
[1753383585299,42.79747373,189.42,189.41,0.06]
[1753383585475,43.45747373,189.42,189.41,0.06]
[1753383585675,38.18,189.42,189.41,0.06]
[1753383585873,37.52,189.42,189.41,0.06]
[1753383586692,37.52,189.42,189.41,0.76]
[1753383586907,37.52,189.44,189.41,0.76]
[1753383587197,37.52,189.44,189.42,0.7]
[1753383588406,37.52,189.44,189.43,0.7]
[1753383588717,37.52,189.44,189.43,5.97747373]
[1753383588995,26.0,189.44,189.43,11.2564686]
[1753383589707,0.03,189.46,189.44,0.28432314]
[1753383590016,0.03,189.46,189.45,6.26179687]
[1753383591213,0.03,189.46,189.45,11.54023445]
[1753383591987,0.03,189.46,189.45,6.26276072]
[1753383592194,0.03,189.46,189.45,11.54023445]
[1753383592783,0.03,189.46,189.45,16.81770818]
[1753383593992,0.03,189.46,189.45,11.54023445]
[1753383594498,0.03,189.46,189.45,5.27747373]
[1753383595103,0.03,189.46,189.44,10.5559628]
[1753383595301,0.03,189.46,189.45,5.27747373]
[1753383599201,26.03,189.46,189.45,10.55591131]
[1753383600211,26.03,189.46,189.45,5.27747373]
[1753383600583,26.03,189.46,189.43,5.96892058]
[1753383600803,2.2615,189.45,189.41,0.06]
[1753383601111,48.0621577,189.42,189.41,0.06]
[1753383601488,26.67,189.42,189.41,0.06]
[1753383601796,64.19,189.42,189.41,0.06]
[1753383602389,86.2521577,189.42,189.41,0.06]
[1753383602782,91.53143127,189.42,189.41,0.06]
[1753383604526,63.52,189.42,189.41,0.06]
[1753383604724,69.46747373,189.42,189.41,0.06]
[1753383605018,74.7467473,189.42,189.41,0.06]
[1753383605190,91.53143127,189.42,189.41,0.06]
[1753383605390,86.25395754,189.42,189.41,0.06]
[1753383605616,91.53143127,189.42,189.41,0.06]
[1753383606325,68.79747373,189.42,189.41,0.06]
[1753383606486,63.52,189.42,189.41,0.06]
[1753383607412,37.52,189.42,189.41,0.06]
[1753383607709,37.52,189.42,189.41,6.02747373]
[1753383607901,0.03,189.46,189.41,6.02747373]
[1753383608115,37.55,189.46,189.45,5.27747373]
[1753383608409,37.55,189.46,189.45,5.96747373]
[1753383608606,37.55,189.46,189.44,5.27747373]
[1753383608791,0.03,189.46,189.45,5.96747373]
[1753383609820,0.03,189.46,189.45,11.24591131]
[1753383610300,0.03,189.46,189.45,11.53023445]
[1753383610616,0.03,189.46,189.45,16.80770818]
[1753383610827,0.03,189.46,189.45,6.25276072]
[1753383610995,0.03,189.46,189.45,11.53023445]
[1753383611187,0.03,189.46,189.45,16.80770818]
[1753383612723,0.03,189.5,189.46,0.28432314]
[1753383612889,0.03,189.5,189.49,5.56179687]
[1753383613092,0.03,189.5,189.49,6.25179687]
[1753383613895,0.03,189.5,189.49,11.52912021]
[1753383615715,0.03,189.54,189.49,24.72242856]
[1753383615902,0.03,189.54,189.53,5.27747373]
[1753383616413,0.03,189.54,189.53,5.96747373]
[1753383616739,0.03,189.54,189.53,11.5292706]
[1753383617428,0.1,189.55,189.53,11.5292706]
[1753383617629,0.03,189.6,189.54,28.84154769]
[1753383617923,0.03,189.6,189.59,10.55201352]
[1753383618426,0.03,189.6,189.59,11.24201352]
[1753383620228,0.03,189.6,189.59,11.52633666]
[1753383620528,0.03,189.64,189.59,24.71268615]
[1753383620719,0.03,189.64,189.63,5.27747373]
[1753383621107,0.03,189.64,189.63,5.96747373]
[1753383622729,0.03,189.64,189.63,16.51837466]
[1753383623020,0.03,189.64,189.63,16.8026978]
[1753383623621,0.03,189.64,189.62,5.27366263]
[1753383623803,0.03,189.64,189.63,5.27747373]
[1753383623998,0.03,189.64,189.63,5.96747373]
[1753383624520,0.03,189.64,189.63,11.24090093]
[1753383625715,0.03,189.64,189.63,16.8026978]
[1753383627127,0.03,189.64,189.63,11.52522407]
[1753383628423,0.03,189.64,189.61,5.27375187]
[1753383628626,0.03,189.64,189.63,5.27747373]
[1753383632437,0.03,189.64,189.63,16.53837466]
[1753383632934,0.03,189.64,189.63,11.26090093]
[1753383633811,0.03,189.64,189.63,5.2734272]
[1753383634128,0.03,189.64,189.63,11.26090093]
[1753383636019,0.73,189.64,189.63,5.27747373]
[1753383636215,0.73,189.64,189.59,0.71]
[1753383636416,26.0,189.63,189.59,5.27747373]
[1753383636719,26.0,189.63,189.57,5.27509627]
[1753383636720,0.7,189.62,189.6,5.27747373]
[1753383637324,26.7,189.62,189.61,5.27747373]
[1753383637726,26.0,189.62,189.61,5.27747373]
[1753383637929,26.0,189.62,189.6,5.27747373]
[1753383638131,0.03,189.64,189.61,5.98747373]
[1753383638320,0.03,189.64,189.63,10.55494746]
[1753383638725,0.03,189.64,189.63,11.26494746]
[1753383639231,0.03,189.64,189.63,11.5492706]
[1753383640335,0.03,189.64,189.63,16.8226978]
[1753383640708,0.03,189.64,189.63,11.26090093]
[1753383640912,0.03,189.64,189.63,10.55090093]
[1753383641518,26.0,189.63,189.6,10.55151408]
[1753383641716,0.7,189.62,189.6,5.27747373]
[1753383641926,0.7,189.62,189.59,5.27747373]
[1753383642115,26.0,189.62,189.59,5.27747373]
[1753383642422,0.7,189.61,189.58,5.27747373]
[1753383642613,0.7,189.6,189.57,5.27747373]
[1753383642816,0.7,189.6,189.53,5.27747373]
[1753383642817,26.0,189.56,189.53,5.27747373]
[1753383643036,26.0,189.56,189.54,5.27747373]
[1753383643317,26.0,189.57,189.54,5.27747373]
[1753383643527,26.7,189.57,189.54,5.27747373]
[1753383643925,26.7,189.57,189.54,10.55331272]
[1753383644125,26.7,189.57,189.55,0.06]
[1753383644920,4.28068329,189.66,189.56,5.98747373]
[1753383645137,26.0,189.62,189.59,8.57152886]
[1753383645312,26.7,189.62,189.59,8.57152886]
[1753383645739,26.0,189.6,189.57,0.71]
[1753383645938,37.46,189.63,189.59,8.57152886]
[1753383646138,37.46,189.63,189.61,8.57152886]
[1753383646356,63.46,189.63,189.62,8.57152886]
[1753383647047,26.0,189.63,189.62,8.57152886]
[1753383647920,26.0,189.63,189.62,14.55523416]
[1753383648326,26.0,189.63,189.62,13.84523416]
[1753383649233,26.0,189.63,189.62,8.57152886]
[1753383649547,26.7,189.63,189.6,8.57152886]
[1753383649740,0.7,189.62,189.6,8.57152886]
[1753383650216,63.46,189.63,189.61,8.57152886]
[1753383650420,64.16,189.63,189.61,8.57152886]
[1753383650934,0.7,189.62,189.61,8.57152886]
[1753383651247,63.46,189.63,189.61,8.57152886]
[1753383651622,63.46,189.63,189.59,5.2744662]
[1753383651623,63.46,189.63,189.62,8.57152886]
[1753383651830,26.0,189.63,189.62,8.57152886]
[1753383652830,26.0,189.63,189.62,13.84523416]
[1753383653021,26.0,189.63,189.62,8.57152886]
[1753383653833,0.03,189.64,189.62,14.55506514]
[1753383654029,0.03,189.64,189.63,14.55495606]
[1753383661458,0.03,189.68,189.64,16.78468397]
[1753383661660,0.03,189.68,189.67,8.855852]
[1753383662040,0.03,189.68,189.67,9.575852]
[1753383662969,0.74,189.68,189.63,18.4569952]
[1753383663137,0.71,189.67,189.66,8.57152886]
[1753383664138,0.71,189.67,189.65,8.57152886]
[1753383664665,26.03,189.68,189.66,8.57152886]
[1753383664864,26.03,189.68,189.67,8.57152886]
[1753383665356,26.03,189.68,189.67,5.25532934]
[1753383667343,26.03,189.68,189.63,0.72]
[1753383667564,0.71,189.67,189.64,10.52847846]
[1753383667873,0.71,189.66,189.65,5.25532934]
[1753383668047,26.03,189.68,189.65,5.25532934]
[1753383668253,0.03,189.67,189.65,5.25532934]
[1753383668661,0.74,189.67,189.65,5.25532934]
[1753383669364,0.03,189.67,189.66,5.25532934]
[1753383669575,0.03,189.67,189.66,5.97532934]
[1753383669892,0.03,189.68,189.66,6.11749091]
[1753383670081,0.03,189.68,189.67,6.25965248]
[1753383670950,0.03,189.68,189.67,5.97532934]
[1753383671753,0.03,189.68,189.67,11.24764441]
[1753383672586,0.03,189.68,189.67,11.53196755]
[1753383673381,0.03,189.68,189.67,14.55185899]
[1753383676080,0.03,189.68,189.67,14.83618213]
[1753383678190,0.03,189.69,189.68,17.06900711]
[1753383678486,0.03,189.69,189.68,26.34855103]
[1753383679778,0.03,189.69,189.68,9.27954392]
[1753383680383,0.03,189.69,189.68,51.99158103]
[1753383682274,0.03,189.69,189.68,52.27590417]
[1753383685468,0.03,189.69,189.68,42.71203711]
[1753383685772,0.03,189.69,189.68,13.83158103]
[1753383685977,0.03,189.69,189.68,14.55158103]
[1753383686972,0.03,189.72,189.68,44.80068092]
[1753383687175,0.03,189.72,189.71,8.55954392]
[1753383687384,0.03,189.72,189.71,45.97954392]
[1753383687597,0.03,189.72,189.71,51.91074733]
[1753383691582,0.03,189.72,189.71,51.25074733]
[1753383692192,0.03,189.72,189.71,51.91074733]
[1753383692595,0.03,189.72,189.71,51.25074733]
[1753383693098,0.03,189.72,189.71,13.83074733]
[1753383693287,0.03,189.72,189.71,47.94303964]
[1753383693484,0.73,189.72,189.71,5.25183623]
[1753383693687,0.73,189.72,189.71,42.67183623]
[1753383694494,0.03,189.72,189.71,47.94303964]
[1753383694684,0.03,189.72,189.71,10.52303964]
[1753383697479,0.73,189.72,189.71,10.52303964]
[1753383698595,0.73,189.72,189.71,5.25183623]
[1753383698789,0.73,189.72,189.67,0.06]
[1753383698790,26.0,189.7,189.67,0.06]
[1753383698989,31.95183623,189.69,189.67,0.06]
[1753383699203,26.7,189.69,189.67,0.06]
[1753383699391,0.7,189.68,189.67,0.06]
[1753383700289,26.7,189.68,189.67,0.06]
[1753383700701,26.0,189.68,189.67,0.06]
[1753383700890,26.03,189.72,189.67,5.97183623]
[1753383701089,0.03,189.72,189.71,5.25183623]
[1753383702001,0.03,189.72,189.71,10.52303964]
[1753383702308,0.73,189.72,189.68,42.67183623]
[1753383702804,0.73,189.72,189.69,5.25183623]
[1753383703007,0.73,189.72,189.68,47.94384108]
[1753383703189,0.73,189.72,189.69,5.25183623]
[1753383703391,0.7,189.71,189.69,5.25183623]
[1753383703600,0.03,189.72,189.68,10.52384108]
[1753383703794,0.7,189.7,189.68,10.52384108]
[1753383704211,0.03,189.72,189.69,10.5235924]
[1753383704510,0.73,189.72,189.69,10.5235924]
[1753383704896,0.73,189.72,189.7,5.25183623]
[1753383705910,0.03,189.72,189.7,5.25183623]
[1753383706619,0.73,189.72,189.7,10.52315825]
[1753383706794,0.73,189.72,189.71,5.25183623]
[1753383706795,0.03,189.72,189.71,5.25183623]
[1753383708720,0.03,189.72,189.71,10.52303964]
[1753383709437,0.03,189.72,189.71,11.18303964]
[1753383711615,0.03,189.73,189.71,33.21955984]
[1753383711813,0.03,189.8,189.75,5.25183623]
[1753383711993,0.03,189.8,189.79,5.25183623]
[1753383712600,0.03,189.8,189.76,42.65183623]
[1753383712601,26.73,189.8,189.76,42.65183623]
[1753383712821,0.7,189.79,189.76,5.25183623]
[1753383713121,0.7,189.78,189.76,5.25183623]
[1753383713519,0.7,189.78,189.75,5.25183623]
[1753383713729,0.7,189.78,189.76,5.2698145]
[1753383714223,0.7,189.78,189.76,10.52165073]
[1753383714396,0.03,189.8,189.77,5.91183623]
[1753383714598,0.03,189.8,189.79,5.25183623]
[1753383715128,0.03,189.8,189.79,5.91183623]
[1753383715320,0.7,189.87,189.79,11.16367246]
[1753383715522,0.7,189.87,189.77,37.68432314]
[1753383715523,0.7,189.87,189.85,5.25183623]
[1753383715718,0.7,189.87,189.85,10.51915253]
[1753383716027,26.0,189.86,189.85,10.51915253]
[1753383717102,26.0,189.84,189.76,6.3711]
[1753383717315,0.7,189.83,189.8,5.25183623]
[1753383717604,26.0,189.84,189.82,5.26814877]
[1753383718197,26.69,189.84,189.81,10.52023556]
[1753383718610,26.0,189.84,189.83,5.25183623]
[1753383718808,26.69,189.87,189.83,5.25183623]
[1753383719038,26.0,189.86,189.84,5.25183623]
[1753383719329,26.0,189.85,189.82,8.54997546]
[1753383719631,26.69,189.85,189.82,13.81800476]
[1753383720012,26.69,189.85,189.82,5.2680293]
[1753383720213,0.69,189.84,189.82,5.2680293]
[1753383720512,0.69,189.83,189.8,5.26845015]
[1753383720715,0.69,189.82,189.79,13.81890414]
[1753383721119,8.54997546,189.85,189.79,5.26892868]
[1753383721304,0.69,189.84,189.79,8.54997546]
[1753383721508,26.0,189.81,189.78,8.54997546]
[1753383721725,0.69,189.8,189.79,5.2689815]
[1753383721931,0.69,189.83,189.79,13.81895696]
[1753383722419,0.69,189.82,189.79,13.81895696]
[1753383722934,37.38,189.84,189.79,13.81895696]
[1753383723112,0.69,189.81,189.79,5.2689815]
[1753383723307,0.69,189.8,189.77,8.54997546]
[1753383723624,0.69,189.79,189.77,5.2695368]
[1753383723808,0.69,189.79,189.77,13.81951226]
[1753383724706,0.69,189.81,189.77,13.81951226]
[1753383725007,26.69,189.83,189.79,8.54997546]
[1753383725207,37.38,189.84,189.77,5.2695368]
[1753383725208,26.0,189.84,189.81,8.54997546]
[1753383725413,26.0,189.84,189.82,8.54997546]
[1753383727009,0.69,189.83,189.81,13.81823558]
[1753383727215,26.0,189.84,189.81,13.81823558]
[1753383728128,0.69,189.85,189.81,13.81823558]
[1753383728129,0.69,189.85,189.82,8.54997546]
[1753383729009,0.69,189.85,189.82,13.81800797]
[1753383729522,37.38,189.86,189.84,8.54997546]
[1753383729845,2.74677271,189.92,189.85,8.54997546]
[1753383730043,37.38,189.91,189.88,8.54997546]
[1753383730222,37.38,189.91,189.89,8.54997546]
[1753383730703,37.38,189.91,189.86,0.71]
[1753383730899,37.38,189.91,189.89,8.54997546]
[1753383731103,37.38,189.91,189.89,13.81615722]
[1753383731304,37.38,189.91,189.89,8.54997546]
[1753383731636,37.38,189.91,189.89,13.81615086]
[1753383732312,26.0,189.88,189.81,13.17074318]
[1753383732519,0.69,189.87,189.8,42.64870389]
[1753383732713,46.61997546,189.87,189.81,8.54997546]
[1753383732903,0.69,189.86,189.81,8.54997546]
[1753383733110,0.69,189.85,189.82,5.26814877]
[1753383733326,0.69,189.84,189.81,5.26840083]
[1753383733736,0.69,189.84,189.81,13.81837629]
[1753383733941,26.0,189.88,189.82,0.71]
[1753383734229,64.07,189.89,189.84,8.54997546]
[1753383734432,0.69,189.88,189.83,8.54997546]
[1753383734636,0.69,189.87,189.83,8.54997546]
[1753383735140,0.69,189.87,189.83,13.81763637]
[1753383735624,0.69,189.86,189.83,5.26766091]
[1753383735803,64.07,189.89,189.83,13.81763637]
[1753383736003,72.61997546,189.89,189.83,13.81763637]
[1753383736237,64.07,189.89,189.83,13.81763637]
[1753383736421,72.61997546,189.89,189.83,13.81763637]
[1753383736915,64.07,189.89,189.85,8.54997546]
[1753383737117,64.07,189.89,189.84,8.54997546]
[1753383737607,64.07,189.89,189.85,5.2673163]
[1753383737926,64.07,189.89,189.85,13.81729176]
[1753383738111,0.69,189.88,189.85,5.2673163]
[1753383739021,0.69,189.88,189.84,5.26753932]
[1753383739334,0.69,189.88,189.84,13.81751478]
[1753383739833,0.69,189.88,189.84,5.26753932]
[1753383740133,0.69,189.87,189.84,5.26753932]
[1753383740515,72.61997546,189.89,189.84,5.26753932]
[1753383740721,0.69,189.88,189.84,5.26753932]
[1753383742322,0.69,189.88,189.84,10.51359282]
[1753383742520,0.69,189.88,189.84,11.22359282]
[1753383742736,63.38,189.89,189.84,11.22359282]
[1753383742922,64.07,189.89,189.84,11.22359282]
[1753383743734,26.69,189.89,189.84,11.22359282]
[1753383744037,64.05,189.89,189.87,5.2460535]
[1753383744210,64.05,189.89,189.85,5.9560535]
[1753383744410,63.36,189.89,189.85,5.9560535]
[1753383744631,63.36,189.89,189.86,0.71]
[1753383744938,63.36,189.89,189.87,0.71]
[1753383745107,63.36,189.89,189.85,5.9560535]
[1753383745612,63.36,189.89,189.86,5.9560535]
[1753383745916,26.0,189.88,189.85,5.2460535]